Cogmind - Beta 10.2 @@@ ROGUE MODE // 2021.08.08 @ 09:48:18 Player: Cypher Result: Self-destructed Performance ------------- Evolutions (5) 2500 Regions Visited (8) 1600 Robots Destroyed (93) 465 Value Destroyed (2782) 2782 Prototype IDs (23) 460 Alien Tech Used (0) 0 Bonus (716) 716 TOTAL SCORE: 8523 Bonus ------- High Alert Combat Kills 335 Follower Combat Kills 81 Aligned with FarCom 300 Cogmind --------- Core Integrity 745/1000 Matter 54/300 Energy 544/590 System Corruption 19% Temperature Cool (218) Movement Treading (220) Ox3 Location -5/Factory Parts ------- > --- POWER (1) -------- Improved Deuterium Engine > --- PROPULSION (3) --- Medium Treads > --- UTILITY (9) ------ Improved Heat Sink Advanced Heat Sink Medium Storage Unit Large Storage Unit High-capacity Storage Unit Compact Battery Weapon Cycler Improved Light Armor Plating > --- WEAPON (4) ------- Improved EM Pulse Cannon Gauss Cannon Long-range Missile Launcher > --- INVENTORY (22) --- Medium Treads Medium Treads Medium Treads Wheel Advanced Heat Sink Improved Signal Interpreter Advanced Terrain Scan Processor Advanced Terrain Scan Processor Heavy Reactive Plating Hacking Suite Hacking Suite Long-range Proton Cannon YOLO Cannon Gauss Cannon Slug Cannon Improved Datajack Scythe Peak State ------------ > --- POWER ------------ Improved Deuterium Engine > --- PROPULSION ------- Compact Wheel Armored Huge Wheel > --- UTILITY ---------- Improved Heat Sink Large Storage Unit High-capacity Storage Unit Compact Battery Kinecellerator Weapon Cycler Weapon Cycler Layered Medium Armor Plating Long-range Tractor Beam > --- WEAPON ----------- Improved EM Pulse Cannon Disruptor Cannon Gauss Cannon Gauss Cannon > --- INVENTORY -------- Improved Deuterium Engine Fission Core Wheel Improved Signal Interpreter Advanced Terrain Scan Processor Advanced Terrain Scan Processor Hacking Suite Hacking Suite YOLO Cannon Gauss Cannon Gauss Cannon Slug Cannon Long-range Missile Launcher Long-range Missile Launcher Improved Datajack Scythe [Rating: 66] Favorites ----------- Power Ion Engine Engine Ion Engine Power Core Light Nuclear Core Propulsion Wheel Treads Medium Treads Wheel Wheel Utility High-capacity Storage Unit Device Weapon Cycler Storage High-capacity Storage Unit Protection Improved Light Armor Plating Weapon Gauss Cannon Energy Gun Small Laser Energy Cannon Disruptor Cannon Ballistic Gun Assault Rifle Ballistic Cannon Gauss Cannon Launcher Long-range Missile Launcher Impact Weapon Hammer Slashing Weapon Scythe Special Melee Weapon Datajack Build | -11 -10 -10 -10 -9 -8 -7 -6 -5 ------- Run | Scr Mat Min Exi Min Mat Fac Fac Fac Slots Evolved 10 | . . . . . 4 2 2 2 Power . | . . . . . . . . . Propulsion 1 | . . . . . . . 1 . Utility 7 | . . . . . 3 2 1 1 Weapon 2 | . . . . . 1 . . 1 Parts Attached 85 | 7 23 3 1 . 6 14 4 27 Power 9 | 1 3 1 . . 1 2 . 1 Engine 7 | 1 3 1 . . . 1 . 1 Core 2 | . . . . . 1 1 . . Reactor . | . . . . . . . . . Propulsion 13 | 2 5 1 . . . 1 1 3 Treads 3 | . 1 . . . . . . 2 Leg . | . . . . . . . . . Wheel 10 | 2 4 1 . . . 1 1 1 Hover . | . . . . . . . . . Flight . | . . . . . . . . . Utility 21 | 2 2 . . . 3 6 2 6 Device 11 | . . . . . 3 3 1 4 Storage 7 | 2 2 . . . . 2 . 1 Processor . | . . . . . . . . . Hackware . | . . . . . . . . . Protection 3 | . . . . . . 1 1 1 Artifact . | . . . . . . . . . Weapon 42 | 2 13 1 1 . 2 5 1 17 Energy Gun 9 | 2 7 . . . . . . . Energy Cannon 5 | . . . . . . . . 5 Ballistic Gun 4 | . 1 . 1 . 2 . . . Ballistic Cannon 13 | . 2 1 . . . 4 . 6 Launcher 6 | . 2 . . . . . . 4 Special Weapon . | . . . . . . . . . Impact Weapon 1 | . 1 . . . . . . . Slashing Weapon 3 | . . . . . . . 1 2 Piercing Weapon . | . . . . . . . . . Special Melee Weapon 1 | . . . . . . 1 . . Unidentified Prototypes . | . . . . . . . . . Parts Lost 17 | . 3 1 . . 1 . . 12 Power 1 | . . . . . . . . 1 Propulsion 2 | . . . . . . . . 2 Utility 5 | . . . . . . . . 5 Weapon 9 | . 3 1 . . 1 . . 4 Highest Loss Streak 4 | . 2 1 . . 1 . . 4 Average Slot Usage (%) 95 | . 99 100 100 100 96 95 92 86 Engine 8 | . 13 14 14 14 4 2 6 5 Core 1 | . . . . . 4 4 . . Wheel 18 | . 27 28 28 28 18 10 13 10 Device 13 | . . . . . 25 28 25 19 Storage 24 | . 28 28 28 28 18 23 20 20 Protection 1 | . . . . . . 1 6 4 Energy Gun 3 | . 22 2 . . . . . . Ballistic Gun 7 | . 1 14 14 14 21 6 . . Ballistic Cannon 12 | . 1 11 14 14 3 15 14 14 Slashing Weapon 1 | . . . . . . . 5 3 Naked Turns . | . . . . . . . . . Heaviest Build 105 | 13 59 58 58 58 64 88 90 105 Greatest Support 44 | 26 26 20 20 20 20 28 44 44 Greatest Overweight (x) 4 | . 2 2 2 2 3 4 2 3 Average Overweight (x) 2 | . 1 2 2 2 2 2 1 2 Largest Inventory Capacity 22 | 8 18 18 18 18 18 18 18 22 Average Capacity 18 | 6 16 18 18 18 18 18 18 20 Most Carried 22 | 4 18 18 18 18 18 18 18 22 Average Carried 16 | 1 13 15 17 17 16 17 17 18 Final Capacity 22 | 8 18 18 18 18 18 18 18 22 Final Carried 19 | 4 18 17 18 18 17 18 18 19 Class Distribution -------------------- 60% | Mutant 13% | Skirmisher 10% | Scavenger-Skirmisher 9% | Hauler-Mutant 4% | Hauler-Skirmisher Dominant Class ---------------- Mutant | -10/Materials Mutant | -10/Mines Mutant | -10/Exiles Mutant | -9/Mines Scavenger-Skirmisher | -8/Materials Skirmisher | -7/Factory Mutant | -6/Factory Hauler-Mutant | -5/Factory Resources | -11 -10 -10 -10 -9 -8 -7 -6 -5 ----------- Run | Scr Mat Min Exi Min Mat Fac Fac Fac Matter Collected 2470 | 259 287 175 . 69 88 446 22 1124 Remotely 640 | . . . . . . . . 640 Salvage Created 3266 | 88 426 388 . 36 52 592 22 1662 Parts 163 | 5 28 16 . 1 2 26 1 84 Haulers Intercepted . | . . . . . . . . . Recyclers Shooed 4 | . 1 . . . . . . 3 Parts Field Recycled . | . . . . . . . . . Retrieved Matter . | . . . . . . . . . Parts Self-Destructed . | . . . . . . . . . Prevented . | . . . . . . . . . Kills | -11 -10 -10 -10 -9 -8 -7 -6 -5 ------- Run | Scr Mat Min Exi Min Mat Fac Fac Fac Combat Hostiles Destroyed 55 | . 13 2 . 2 1 12 . 25 Guns 15 | . 10 1 . . 1 3 . . Cannons 21 | . . 1 . 2 . 9 . 9 AOE 18 | . 3 . . . . . . 15 Classes Destroyed 10 | 2 3 . . . 1 1 . 3 Worker 10 | . . . . . . 1 1 8 Builder 8 | . 1 . . . . 1 . 6 Tunneler 5 | 1 . 2 . . . . . 2 Recycler 13 | 1 1 2 . . . 2 . 7 Watcher 2 | . . . . . . . . 2 Swarmer 13 | . 3 . . 1 . . . 9 Grunt 27 | . 10 2 . 1 . 8 . 6 Sentry 7 | . . . . . 1 4 . 2 Hunter 2 | . . . . . . . . 2 Programmer 6 | . . . . . . . . 6 Best Kill Streak 17 | 1 5 2 . 1 1 3 1 17 Combat Bots Only 9 | . 4 2 . 1 1 3 . 9 Max Kills in Single Turn 4 | 1 1 1 . 1 1 2 1 4 Gunslinging . | . . . . . . . . . Exploded 3 | . 1 . . . . . . 3 Melee . | . . . . . . . . . Uniques/NPCs Destroyed . | . . . . . . . . . Combat | -11 -10 -10 -10 -9 -8 -7 -6 -5 -------- Run | Scr Mat Min Exi Min Mat Fac Fac Fac Damage Taken 3695 | . 756 110 . 55 30 387 . 2357 Core 526 | . 158 35 . 16 . 62 . 255 Absorbed by Shields 83 | . . . . . . 83 . . Core Remaining (%) 81 | 100 . . . 16 100 91 100 . Volleys Fired 161 | 4 33 17 . 9 1 32 . 65 Largest 4 | 2 2 2 . 2 2 3 . 4 Hottest 246 | 80 130 70 . 55 43 144 . 246 Shots Fired 372 | 8 65 34 . 18 2 93 . 152 Gun 109 | 8 47 25 . 9 2 18 . . Cannon 244 | . 10 9 . 9 . 75 . 141 Launcher 19 | . 8 . . . . . . 11 Special . | . . . . . . . . . Kinetic 277 | . 17 26 . 18 2 93 . 121 Thermal 62 | 8 40 8 . . . . . 6 Explosive 19 | . 8 . . . . . . 11 Electromagnetic 14 | . . . . . . . . 14 Robot Hit Streak 13 | 1 13 6 . 5 1 10 . 8 Robot Miss Streak 4 | 3 4 2 . 1 1 3 . 4 Penetration Max 1 | . . . . . . . . 1 Secondary Targets 2 | . 2 . . . . . . . Max Gunslinging Chain 1 | . 1 . . . . . . . Shots Hit Robots 246 | 2 48 22 . 13 1 58 1 101 Core Hits 151 | 3 30 12 . 4 1 22 1 78 Critical Hits 20 | . . . . . . 12 . 8 Critical Kills 6 | . . . . . . 5 . 1 Critical Parts Destroyed 10 | . . . . . . 4 . 6 Melee Attacks 25 | . 2 . . . . 3 3 17 Impact 2 | . 2 . . . . . . . Slashing 20 | . . . . . . . 3 17 Piercing . | . . . . . . . . . Sneak Attacks 11 | . . . . . . 2 1 8 Combat Hostiles . | . . . . . . . . . Follow-up Attacks . | . . . . . . . . . Damage Inflicted 10454 | 34 1274 334 . 194 11 1445 92 7070 Guns 1008 | 34 512 230 . 105 11 116 . . Cannons 4568 | . 136 104 . 89 . 1329 . 2910 Explosions 3862 | . 609 . . . . . . 3253 Melee 1016 | . 17 . . . . . 92 907 Ramming . | . . . . . . . . . Kinetic 4162 | . 213 232 . 194 11 1445 . 2067 Thermal 2010 | 34 435 102 . . . . . 1439 Explosive 2925 | . 609 . . . . . . 2316 Electromagnetic 341 | . . . . . . . . 341 Impact 17 | . 17 . . . . . . . Slashing 999 | . . . . . . . 92 907 Piercing . | . . . . . . . . . Highest Corruption 19 | . . . . . 1 . . 19 Average Corruption 6 | . . . . . 1 . . 7 Corruption Purged . | . . . . . . . . . Effects 35 | . . . . . . . . 35 Message Errors 6 | . . . . . . . . 6 Matter Fused 5 | . . . . . . . . 5 Heat Flow Errors 2 | . . . . . . . . 2 Energy Discharges 2 | . . . . . . . . 2 Data Loss (minor) 5 | . . . . . . . . 5 Misdirections 4 | . . . . . . . . 4 Targeting Errors 10 | . . . . . . . . 10 Weapon Failures 1 | . . . . . . . . 1 Overload Shots . | . . . . . . . . . Overflow Damage 733 | . 23 . . . . 58 . 652 Projectiles 232 | . 6 . . . . 58 . 168 Explosions 247 | . 17 . . . . . . 230 Melee 254 | . . . . . . . . 254 Knockbacks 42 | . 4 1 . 3 . 10 . 24 Impact . | . . . . . . . . . Kinetic 38 | . 4 1 . 2 . 10 . 21 Secondary 4 | . . . . 1 . . . 3 Self-Inflicted Damage 67 | . 45 . . . . . . 22 Shots 3 | . 2 . . . . . . 1 Rammed . | . . . . . . . . . Targets Rammed . | . . . . . . . . . Kicked . | . . . . . . . . . Crushed . | . . . . . . . . . Highest Temperature 356 | 36 333 90 . . . 347 . 356 Average Temperature 117 | 12 144 39 . . . 105 . 120 Received Heat Transfer 746 | . 348 63 . . 9 155 . 171 Effects 9 | . 4 . . . . . . 5 Energy Bleed 2 | . 2 . . . . . . . Interference 6 | . 1 . . . . . . 5 Short Circuit 1 | . 1 . . . . . . . Siege Activations . | . . . . . . . . . Robots Corrupted 1 | . . . . . . . . 1 Combat Hostiles 1 | . . . . . . . . 1 Parts Fried 2 | . . . . . . . . 2 Impact Corruptions . | . . . . . . . . . Robots Melted . | . . . . . . . . . Combat Hostiles . | . . . . . . . . . Parts Melted 3 | . 2 . . . . . . 1 Heat Transferred 2677 | 75 1026 296 . . . . . 1280 Parts Sabotaged . | . . . . . . . . . Parts Stolen . | . . . . . . . . . Parts Stripped . | . . . . . . . . . Power Chain Reactions . | . . . . . . . . . Missiles Intercepted . | . . . . . . . . . Alert | -11 -10 -10 -10 -9 -8 -7 -6 -5 ------- Run | Scr Mat Min Exi Min Mat Fac Fac Fac Peak Influence 1083 | 10 280 179 . 119 59 405 168 1083 Initial 161 | . 6 109 . . 33 15 161 81 Average 181 | 4 60 100 . 99 38 204 165 385 Maximum Alert Level 3 | . 1 . . . . 2 . 3 Low Security (%) 71 | 100 92 100 . 100 100 46 100 28 Level 1 17 | . 7 . . . . 52 . 22 Level 2 10 | . . . . . . 1 . 43 Level 3 1 | . . . . . . . . 5 Level 4 . | . . . . . . . . . Level 5 . | . . . . . . . . . High Security . | . . . . . . . . . Max Security . | . . . . . . . . . Squads Dispatched 14 | . 3 . . . . 4 1 6 Investigation 6 | . 2 . . . . 3 . 1 Extermination 4 | . . . . . . . 1 3 Reinforcement 4 | . 1 . . . . 1 . 2 Assault . | . . . . . . . . . Garrison . | . . . . . . . . . Intercept . | . . . . . . . . . Construction Impeded 2 | . . . . . . . . 2 Haulers Reinforced . | . . . . . . . . . Stealth | -11 -10 -10 -10 -9 -8 -7 -6 -5 --------- Run | Scr Mat Min Exi Min Mat Fac Fac Fac Distress Signals 8 | . 3 . . 1 . 1 . 3 Communications Jammed . | . . . . . . . . . Distress Signals . | . . . . . . . . . Times Spotted 75 | . 22 2 . 6 2 13 . 30 Peak Tracking Total 8 | . 7 2 . 4 1 3 1 8 Tactical Retreats 2 | . 1 . . . . . . 1 Traps | -11 -10 -10 -10 -9 -8 -7 -6 -5 ------- Run | Scr Mat Min Exi Min Mat Fac Fac Fac Traps Triggered 4 | . . . . . 1 2 . 1 Indirectly . | . . . . . . . . . Trap Hack Attempts . | . . . . . . . . . Triggered . | . . . . . . . . . Disarmed . | . . . . . . . . . Reprogrammed . | . . . . . . . . . Reused . | . . . . . . . . . Traps Extracted . | . . . . . . . . . Installed . | . . . . . . . . . Triggered . | . . . . . . . . . Exploded 2 | . . . . . . 1 . 1 Machines | -11 -10 -10 -10 -9 -8 -7 -6 -5 ---------- Run | Scr Mat Min Exi Min Mat Fac Fac Fac Machines Disabled 16 | . . . . 1 . 1 . 14 Max in Single Turn 4 | . . . . . . 1 . 4 Garrison Access 2 | . . . . . . 1 . 1 Machines Sabotaged . | . . . . . . . . . Garrisons Compromised . | . . . . . . . . . Overloaded Fab Kills . | . . . . . . . . . Fab Network Shutdowns . | . . . . . . . . . Hacking | -11 -10 -10 -10 -9 -8 -7 -6 -5 --------- Run | Scr Mat Min Exi Min Mat Fac Fac Fac Machines Accessed 17 | . 4 1 1 . 4 5 1 1 Terminals 10 | . 2 1 . . 4 2 1 . Fabricators . | . . . . . . . . . Repair Stations . | . . . . . . . . . Recycling Units 3 | . 2 . . . . 1 . . Scanalyzers 1 | . . . . . . 1 . . Garrison Access 2 | . . . . . . 1 . 1 Total Hacks 51 | . 12 5 1 . 16 15 1 1 Successful 22 | . 7 . 1 . 8 5 . 1 Failed 28 | . 4 5 . . 8 10 1 . Catastrophic 4 | . 1 . . . . 3 . . Database Lockouts 1 | . 1 . . . . . . . Manual 39 | . 10 5 1 . 15 6 1 1 Terminals 40 | . 10 5 . . 16 8 1 . Fabricators . | . . . . . . . . . Repair Stations . | . . . . . . . . . Recycling Units 5 | . 2 . . . . 3 . . Scanalyzers 2 | . . . . . . 2 . . Garrison Access 3 | . . . . . . 2 . 1 Terminal Hacks 7 | . 3 . 1 . 2 1 . . Robot Analysis 3 | . 2 . . . 1 . . . Alert Level 1 | . . . . . 1 . . . Unreport Threat 1 | . 1 . . . . . . . Locate Traps 1 | . . . . . . 1 . . EX-Prototype ID Bank 1 | . . . 1 . . . . . Fabricator Hacks . | . . . . . . . . . Repair Station Hacks . | . . . . . . . . . Recycling Unit Hacks 2 | . . . . . . 2 . . Report Inventory 1 | . . . . . . 1 . . Retrieve Components 1 | . . . . . . 1 . . Scanalyzer . | . . . . . . . . . Garrison Access Hacks . | . . . . . . . . . Unauthorized Hacks 13 | . 4 . . . 6 2 . 1 Terminals 9 | . 2 . . . 6 1 . . Assimilate 3 | . 1 . . . 2 . . . Botnet 5 | . 1 . . . 3 1 . . Operators 1 | . . . . . 1 . . . Fabricators . | . . . . . . . . . Repair Stations . | . . . . . . . . . Recycling Units 2 | . 2 . . . . . . . Tunnel 2 | . 2 . . . . . . . Scanalyzers . | . . . . . . . . . Garrison Access 2 | . . . . . . 1 . 1 Jam 2 | . . . . . . 1 . 1 Data Cores Recovered . | . . . . . . . . . Used . | . . . . . . . . . Hacking Detections 13 | . 2 1 . . 4 5 1 . Full Trace Events 1 | . . . . . . 1 . . Feedback Events . | . . . . . . . . . Feedback Blocked . | . . . . . . . . . Robot Schematics Acquired . | . . . . . . . . . Robots Built . | . . . . . . . . . Matter . | . . . . . . . . . Time . | . . . . . . . . . Total Robot Build Rating . | . . . . . . . . . Part Schematics Acquired . | . . . . . . . . . Parts Built . | . . . . . . . . . Matter . | . . . . . . . . . Time . | . . . . . . . . . Total Part Build Rating . | . . . . . . . . . Parts Repaired . | . . . . . . . . . Time . | . . . . . . . . . Parts Recycled . | . . . . . . . . . Recycled Matter . | . . . . . . . . . Retrieved Matter . | . . . . . . . . . Retrieved Components 1 | . . . . . . 1 . . Parts Scanalyzed . | . . . . . . . . . Part Schematics Acquired . | . . . . . . . . . Parts Damaged . | . . . . . . . . . Bothacking | -11 -10 -10 -10 -9 -8 -7 -6 -5 ------------ Run | Scr Mat Min Exi Min Mat Fac Fac Fac Used RIF Installer . | . . . . . . . . . Robots Hacked 2 | . . . . . . 2 . . Non-combat 2 | . . . . . . 2 . . Combat . | . . . . . . . . . Robot Hacks Applied 3 | . . . . . . 3 . . parse_system 2 | . . . . . . 2 . . check_alert 1 | . . . . . . 1 . . Relay Couplers Released . | . . . . . . . . . Robots Rewired . | . . . . . . . . . Allies Hacked . | . . . . . . . . . Hacks Repelled . | . . . . . . . . . Allies | -11 -10 -10 -10 -9 -8 -7 -6 -5 -------- Run | Scr Mat Min Exi Min Mat Fac Fac Fac Total Allies 7 | . 1 3 . 2 1 . . . Largest Group 5 | . 1 3 3 5 4 1 . . Highest-Rated Group 85 | . 10 40 40 85 77 10 . . Highest-Rated Ally 31 | . 10 16 16 31 31 10 . . Total Orders . | . . . . . . . . . Ally Attacks 24 | . . . . 21 3 . . . Total Damage 337 | . . . . 291 46 . . . Kills 5 | . . . . 5 . . . . Allies Corrupted . | . . . . . . . . . Allies Melted . | . . . . . . . . . Intel | -11 -10 -10 -10 -9 -8 -7 -6 -5 ------- Run | Scr Mat Min Exi Min Mat Fac Fac Fac Robot Analysis Total 3 | . 2 . . . 1 . . . Derelict Logs Recovered 3 | . . 2 . 1 . . . . Drone Launches . | . . . . . . . . . Drone Recoveries . | . . . . . . . . . Exploration | -11 -10 -10 -10 -9 -8 -7 -6 -5 ------------- Run | Scr Mat Min Exi Min Mat Fac Fac Fac Turns Passed 5022 | 74 633 634 348 634 234 1031 398 1036 Spaces Moved 3781 | 54 471 550 321 577 189 704 309 606 Core 2 | 2 . . . . . . . . Treads 4 | . . . . . . . . 4 Legs . | . . . . . . . . . Wheels 3775 | 52 471 550 321 577 189 704 309 602 Hover . | . . . . . . . . . Flight . | . . . . . . . . . Fastest Speed 50 | 50 90 100 100 100 100 110 110 110 Average Speed 108 | 88 99 100 100 100 108 119 112 120 Slowest Speed 220 | 100 100 100 100 100 110 130 120 220 Overloaded Moves . | . . . . . . . . . Propulsion Burnouts . | . . . . . . . . . Robots Hopped . | . . . . . . . . . Cave-ins Triggered 1 | . . . . . . . . 1 Exploration Rate (%) 42 | 5 75 71 70 96 20 16 8 18 Regions Visited 8 Branch Regions 3 Pre-discovered Areas 3 | . 2 . . 1 . . . . Known Exits Taken 1 | . . . . . 1 . . . Unknown Exits Taken 7 | 1 1 1 1 1 . 1 1 . Scrap Searched 4 | . . 3 . 1 . . . . Spaces Dug 4 | . 1 . . . . . 2 1 Terrain Destroyed 215 | . 52 . . . . 13 2 148 Melee 4 | . 1 . . . . . 2 1 Projectile 43 | . . . . . . 13 . 30 AOE 168 | . 51 . . . . . . 117 Terrain Rammed . | . . . . . . . . . Walls Destroyed . | . . . . . . . . . Machines Disabled . | . . . . . . . . . Actions | -11 -10 -10 -10 -9 -8 -7 -6 -5 --------- Run | Scr Mat Min Exi Min Mat Fac Fac Fac Total 4401 | 68 558 601 349 616 215 857 358 779 Wait 239 | . 14 24 20 29 18 57 33 44 Move 3773 | 53 470 549 320 576 188 703 308 606 Hop . | . . . . . . . . . Pick Up 56 | 4 11 3 4 1 1 16 5 11 Fast Attach 28 | 7 4 . . . 4 6 1 6 Attach 23 | . 2 1 1 . 2 4 1 12 Detach 5 | . . . . . . 1 . 4 Swap 34 | . 17 2 . . . 4 2 9 Drop 49 | . 5 5 4 1 1 23 5 5 Fire 161 | 4 33 17 . 9 1 32 . 65 Melee 25 | . 2 . . . . 3 3 17 Ram . | . . . . . . . . . Kick . | . . . . . . . . . Crush . | . . . . . . . . . Escape Stasis 8 | . . . . . . 8 . . Rewire . | . . . . . . . . . Trap . | . . . . . . . . . Miscellaneous . | . . . . . . . . . Route ------- -11/Scrapyard -10/Materials (discovered 4 exits: [*Mat x3] / *Min) -10/Mines (discovered 2 exits: [*Mat] / *Exi) -10/Exiles -9/Mines -8/Materials (discovered 3 exits: *Fac x2 / Sto) -7/Factory -6/Factory -5/Factory History --------- Turn | Location | Event 23 | -11/Scrapyard | Discovered new exit (range 16) 75 | -11/Scrapyard | Entered Materials 212 | -10/Materials | Central database locked down 312 | -10/Materials | Build established: Mutant 345 | -10/Materials | Discovered new exit (range 13) 483 | -10/Materials | Discovered new exit (range 11) 658 | -10/Materials | Core integrity fell below 50% 688 | -10/Materials | Discovered new exit (range 13) 689 | -10/Materials | Discovered new exit (range 14) 708 | -10/Materials | Entered Mines 716 | -10/Mines | Met a Derelict bent on vengeance 777 | -10/Mines | A weapon hastily lodged in a ceiling crevice suddenly fell to the ground 948 | -10/Mines | Deemed a non-threat by the Exiles lab entrance 949 | -10/Mines | Discovered new exit (range 5) 1085 | -10/Mines | Assisted by bots powering up and referring to "LRC-V3" 1107 | -10/Mines | Learned Materials machine intel 1118 | -10/Mines | Discovered new exit (range 5) 1139 | -10/Mines | Found a damaged Exp. Sensor Array with a note attached 1141 | -10/Mines | Found Prototype Device 1224 | -10/Mines | Learned 4 Materials zone layouts 1342 | -10/Mines | Entered Exiles 1342 | -10/Exiles | Accompanied by 3 allies 1373 | -10/Exiles | Met 8R-AWN 1389 | -10/Exiles | Met EX-HEX 1441 | -10/Exiles | Met EX-DEC 1526 | -10/Exiles | Met EX-BIN 1540 | -10/Exiles | Aligned with FarCom system 1541 | -10/Exiles | Given EX-Vault access code 1566 | -10/Exiles | Opened EX-Vault 1573 | -10/Exiles | Found YOLO Cannon 1596 | -10/Exiles | Warned to stay clear of 0b10 Research branches 1658 | -10/Exiles | Discovered new exit (range 14) 1690 | -10/Exiles | Left Exiles lab with YOLO Cannon 1690 | -10/Exiles | Entered Mines 1690 | -9/Mines | Accompanied by 3 allies 1692 | -9/Mines | Core integrity fell below 20% 1888 | -9/Mines | Learned location of Storage (-8) 2042 | -9/Mines | Received a Rocket Launcher from a helpful Derelict 2282 | -9/Mines | Learned 8 Materials zone layouts 2302 | -9/Mines | Discovered new exit (range 7) 2324 | -9/Mines | Entered Materials 2324 | -8/Materials | Accompanied by 4 allies 2324 | -8/Materials | Evolved 4 slots: Utility x3, Weapon x1 2325 | -8/Materials | Identified exit to Factory 2325 | -8/Materials | Identified exit to Storage 2326 | -8/Materials | Loaded intel: 44 machine locations 2329 | -8/Materials | Led the pair of lost Derelicts to an unsafe place 2558 | -8/Materials | Entered Factory 2558 | -7/Factory | Accompanied by 1 ally 2558 | -7/Factory | Evolved 2 slots: Utility x2 2755 | -7/Factory | Build established: Scavenger-Skirmisher 3263 | -7/Factory | Build established: Skirmisher 3489 | -7/Factory | Discovered new exit (range 13) 3589 | -7/Factory | Entered another Factory area 3589 | -6/Factory | Evolved 2 slots: Propulsion x1, Utility x1 3963 | -6/Factory | Discovered new exit (range 9) 3964 | -6/Factory | Build established: Mutant 3987 | -6/Factory | Entered another Factory area 3987 | -5/Factory | Evolved 2 slots: Utility x1, Weapon x1 4349 | -5/Factory | Destroyed 8 combat bots 4640 | -5/Factory | Found Hvy. Reactive Plating 4675 | -5/Factory | System corruption reached 10% 5019 | -5/Factory | Crushed by falling debris 5023 | -5/Factory | Self-destructed Last Messages --------------- 05019_ Com. Wheel destroyed. 05019_ System corrupted by crushing effect (+3). 05019_ Lrn. Missile Launcher destroyed. 05019_ System corrupted by crushing effect (+3). 05019_ Arm. Huge Wheel destroyed. 05019_ System corrupted by crushing effect (+3). 05019_ U-05 Engineer lays Concrete. 05020_ Gauss Cannon destroyed. 05020_ K-01 Serf collects debris. 05020_ S-27 Virus destroyed. 05020_ W-25 Informer destroyed. 05020_ S-27 Virus destroyed. 05021_ Slug penetrates Subcomponent Replicator. 05021_ U-05 Engineer lays Concrete. 05021_ Critical hit. 05022_ System corrupted: Heat flow error (+282). 05022_ U-05 Engineer lays Concrete. 05022_ U-05 Engineer builds a Wall. 05022_ U-05 Engineer lays Concrete. [Achievement: Collector] Map ----- +----------------------------------------------------+ | ??????????????????????????????????????????????? | | ??????????????????????????????????#???????????? | | ?????????????????????????????????# ???????????? | | ????????????????????????????????##"##?????????? | | ???????????????????????????????? #?????????? | | ???????????????????????????????? #?????????? | | ???????????????????????????????"" #?????????? | | ??????????????????????????????""" #?????????? | | ?????????????????????????"""??""" #?????????? | | ??????????????????????""?"""???"" #?????????? | | ????????????????????? ?? ??? #?????????? | | ??????????????g???? ? ???? % #?????????? | | ??????????????g???# #######+##############????? | | ????????????? h#####* u# k% % / #????? | | ???????????? =%[u #### "" #????? | | ??????????? ? ug ! ! # #= """#????? | | ??????????# [ %u! ####% R"#????? | | ??????????# " %= | ""## """#????? | | ??????????# = "" ""## #????? | | ??????????# s % " G## #????? | | ??????????# " =%[ % " ""## ###### | | ??????????+ *% ="" ""## # | | ??????????# [ "" #### """ =!# | | ??????????# = = #??# """ =!# | | ??????????+ =% #??# """ # | | ??????????????#### #@ ######??# # | | ?????????? ########## # | | ???????# # ## # | | ???????# ! # """ ## # % | | ???????# ?# """"" #####/#### | | ???????? ??# """"" # ! | | ???????? ???# # | | ???????? ???# """ # | | ????????? ! ????# """"" + | | ????????? ?????#"" " "" # | | ?????????? ??????#"" # | | ?????????? ??????#"Y """ # | | ???????????? ???????#"" """"" ########## | | ????????????????????#"" """"" #?????# # | | ????????????????????# #?????# # | | ????????????????????###################### | | ????????????????????????????# + | | ????????????????????????????# # | | ????????????????????????????# # | | ????????????????????????????# # | | ????????????????????????????# # | | ????????????????????????????# ###### | | ????????????????????????????# #????? | | ????????????????????????????# #????? | | ????????????????????????????# #????? | +----------------------------------------------------+ Best States ------------- Heat Dissipation 73 Energy Generation 16 Energy Capacity 590 Matter Stores 300 Matter Capacity 300 Sight Range 16 Terrain Scan Density 10 Corruption Prevention 12 Armor Coverage 225 Weapon Cycling 30 Evasion (%) 42 Recoil Reduction 1 Kinecelleration 30 Item Schematics ----------------- None Robot Schematics ------------------ None Fabricated ------------ Nothing Alien Tech Used ----------------- None Achievements -------------- Collector Challenges ------------ None Game ------ Seed RocketMagneticWell Manual? 0 Play Time 00:57:38 Cumulative 205.8 hours Start 2021.08.07 @ 12:54:27 End 2021.08.08 @ 09:48:18 Sessions 7 Manual Loads 0 Difficulty Rogue Special Mode None Game No. 202 Rogue 202 Adventurer 0 Explorer 0 Win Type - Total 0 Types 0/0/0/0/0/0/0/0/0 Lore% 64 Gallery% 75 Achievement% 46 Wizard Run 0 Options --------- ASCII 0 Keyboard 0 Movement Numpad Keybinds 0 Fullscreen 1 Font 24/Smallcaps Map View 76x50 Tactical HUD 1 Map Filters NONE Filters NONE Steam 1 RUN: 35767660-5286-498d-a187-9bb525044529